fUST/lending_fUST_20250203
["ID","MTS","AMOUNT","RATE_DAILY","PERIOD"]
[351423282,1738565449449,-773.54,0.00016849,2]
[351423283,1738565449458,-500.0,0.00016849,2]
[351423284,1738565449468,-500.0,0.00016849,2]
[351423285,1738565449478,-1460.69,0.00016849,2]
[351423286,1738565449489,-500.0,0.00016849,2]
[351423287,1738565449499,-500.0,0.00016849,2]
[351423288,1738565449508,-781.25,0.00016849,2]
[351423289,1738565449518,-500.0,0.00016849,2]
[351423290,1738565449527,-500.0,0.00016849,2]
[351423291,1738565449536,-500.0,0.00016849,2]
[351423292,1738565449545,-557.81708197,0.00016849,2]
[351423293,1738565449554,-830.03,0.00016849,2]
[351423294,1738565449563,-500.0,0.00016849,2]
[351423295,1738565449572,-2301.16,0.00016849,2]
[351423296,1738565449583,-242.28995021,0.00016849,2]
[351423297,1738565449592,-500.0,0.00016849,2]
[351423298,1738565449601,-6082.07,0.00016849,2]
[351423299,1738565449611,-500.0,0.00016849,2]
[351423300,1738565449620,-500.0,0.00016849,2]
[351423301,1738565449629,-500.0,0.00016849,2]
[351423302,1738565449638,-1221.72,0.00016849,2]
[351423303,1738565449647,-500.0,0.00016849,2]
[351423304,1738565449659,-500.0,0.00016849,2]
[351423305,1738565449668,-3130.13,0.00016849,2]
[351423306,1738565449677,-515.62,0.00016849,2]
[351423307,1738565449687,-500.0,0.00016849,2]
[351423308,1738565449696,-2749.25,0.00016849,2]
[351423309,1738565449705,-641.92,0.00016849,2]
[351423310,1738565449714,-757.87,0.00016849,2]
[351423311,1738565449725,-500.0,0.00016849,2]
[351423312,1738565449734,-500.0,0.00016849,2]
[351423313,1738565449743,-500.0,0.00016849,2]
[351423314,1738565449752,-628.82,0.00016849,2]
[351423315,1738565449761,-845.02,0.00016849,2]
[351423316,1738565449771,-2803.11,0.00016849,2]
[351423317,1738565449780,-1000.0,0.00016849,7]
[351423318,1738565449789,-500.0,0.00016849,2]
[351423319,1738565449799,-500.0,0.00016849,2]
[351423320,1738565449808,-500.0,0.00016849,2]
[351423321,1738565449817,-500.0,0.00016849,2]
[351423322,1738565449827,-681.79,0.00016849,2]
[351423323,1738565449836,-378.55855652,0.00016849,2]
[351423324,1738565449845,-1102.36,0.00016849,2]
[351423325,1738565449854,-500.0,0.00016849,2]
[351423326,1738565449863,-503.58501105,0.00016849,2]
[351423327,1738565449872,-604.83,0.00016849,2]
[351423328,1738565449882,-500.0,0.00016849,2]
[351423329,1738565449892,-153.0,0.00016867,2]
[351423330,1738565449903,-1433.14991827,0.00016886,2]
[351423331,1738565449913,-3000.0,0.00016886,2]
[351423332,1738565449922,-151.0,0.000169,2]
[351423333,1738565449931,-500.0,0.00016904,2]
[351423334,1738565449940,-500.0,0.00016925,2]
[351423335,1738565449950,-500.0,0.00016925,2]
[351423336,1738565449959,-1049.198909,0.00016948,2]
[351423337,1738565449969,-153.0,0.00016949,2]
[351423338,1738565449978,-153.0,0.00016949,2]
[351423339,1738565449989,-153.0,0.00016949,2]
[351423340,1738565449998,-153.0,0.00016949,2]
[351423341,1738565450007,-153.0,0.00016949,2]
[351423342,1738565450017,-160.0,0.00016985,2]
[351423343,1738565450027,-160.0,0.00016985,2]
[351423344,1738565450037,-355510.17987123,0.00016985,5]
[351423345,1738565450046,-151.0,0.00016986,2]
[351423346,1738565450056,-30000.0,0.00016986,7]
[351423347,1738565450066,-151.0,0.00016986,2]
[351423348,1738565450079,-151.0,0.00016986,2]
[351423349,1738565450089,-418.181312,0.00016986,2]
[351423350,1738565450098,-418.181312,0.00016986,2]
[351423351,1738565450108,-151.0,0.00016986,2]
[351423352,1738565450218,-151.0,0.00016986,2]
[351423353,1738565450228,-364.268098,0.00016986,2]
[351423354,1738565450238,-364.268098,0.00016986,2]
[351423355,1738565450248,-634.181509,0.00016986,2]
[351423356,1738565450257,-634.181509,0.00016986,2]
[351423357,1738565450267,-500.0,0.00016986,2]
[351423358,1738565450276,-500.0,0.00016986,2]
[351423359,1738565450286,-500.0,0.00016986,2]
[351423360,1738565450295,-614.32,0.00016986,2]
[351423361,1738565450304,-335.02691321,0.00016986,2]
[351423362,1738565450313,-500.0,0.00016986,2]
[351423363,1738565450323,-500.0,0.00016986,2]
[351423364,1738565450332,-500.0,0.00016986,2]
[351423365,1738565450341,-500.0,0.00016986,2]
[351423366,1738565450350,-500.0,0.00016986,2]
[351423367,1738565450360,-500.0,0.00016986,2]
[351423368,1738565450369,-500.0,0.00016986,2]
[351423369,1738565450379,-528.89432038,0.00016986,2]
[351423370,1738565450388,-500.0,0.00016986,2]
[351423371,1738565450397,-500.0,0.00016986,2]
[351423372,1738565450408,-500.0,0.00016986,2]
[351423373,1738565450418,-500.0,0.00016986,2]
[351423374,1738565450427,-715.32,0.00016986,2]
[351423375,1738565450436,-500.0,0.00016986,2]
[351423376,1738565450445,-500.0,0.00016986,2]
[351423377,1738565450455,-500.0,0.00016986,2]
[351423378,1738565450464,-500.0,0.00016986,2]
[351423379,1738565450474,-500.0,0.00016986,2]
[351423380,1738565450483,-500.0,0.00016986,2]
[351423381,1738565450492,-359.24429324,0.00016986,2]
[351423382,1738565450501,-500.0,0.00016986,2]
[351423383,1738565450511,-500.0,0.00016986,2]
[351423384,1738565450520,-500.0,0.00016986,2]
[351423385,1738565450529,-500.0,0.00016986,2]
[351423386,1738565450538,-500.0,0.00016986,2]
[351423387,1738565450548,-500.0,0.00016986,2]
[351423388,1738565450556,-504.04205581,0.00016986,2]
[351423389,1738565450565,-500.0,0.00016986,2]
[351423390,1738565450575,-500.0,0.00016986,2]
[351423391,1738565450585,-610.32,0.00016986,2]
[351423392,1738565450594,-335.67259054,0.00016986,2]
[351423393,1738565450603,-500.0,0.00016986,2]
[351423394,1738565450613,-500.0,0.00016986,2]
[351423395,1738565450622,-500.0,0.00016986,2]
[351423396,1738565450632,-500.0,0.00016986,2]
[351423397,1738565450642,-534.91,0.00016986,2]
[351423398,1738565450654,-986.36,0.00016986,2]
[351423399,1738565450663,-500.0,0.00016986,2]
[351423400,1738565450672,-500.0,0.00016986,2]
[351423401,1738565450681,-500.0,0.00016986,2]
[351423402,1738565450691,-500.0,0.00016986,2]
[351423403,1738565450700,-859.15,0.00016986,2]
[351423404,1738565450710,-500.0,0.00016986,2]
[351423405,1738565450719,-500.0,0.00016986,2]
[351423406,1738565450728,-500.0,0.00016986,2]
[351423407,1738565450738,-500.0,0.00016986,2]
[351423408,1738565450748,-500.0,0.00016986,2]
[351423409,1738565450757,-500.0,0.00016986,2]
[351423410,1738565450767,-500.0,0.00016986,2]
[351423411,1738565450776,-500.0,0.00016986,2]
[351423412,1738565450786,-500.0,0.00016986,2]
[351423413,1738565450795,-500.0,0.00016986,2]
[351423414,1738565450804,-500.0,0.00016986,2]
[351423415,1738565450814,-500.0,0.00016986,2]
[351423416,1738565450823,-500.0,0.00016986,2]
[351423417,1738565450833,-662.49,0.00016986,2]
[351423418,1738565450844,-500.0,0.00016986,2]
[351423419,1738565450853,-689.94,0.00016986,2]
[351423420,1738565450863,-500.0,0.00016986,2]
[351423421,1738565450872,-1084.65,0.00016986,2]
[351423422,1738565450882,-500.0,0.00016986,2]
[351423423,1738565450892,-500.0,0.00016986,2]
[351423424,1738565450904,-511.14,0.00016986,2]
[351423425,1738565450914,-500.0,0.00016986,2]
[351423426,1738565450924,-500.0,0.00016986,2]
[351423427,1738565450933,-634.77,0.00016986,2]
[351423428,1738565450943,-598.39,0.00016986,2]
[351423429,1738565450953,-500.0,0.00016986,2]
[351423430,1738565450962,-500.0,0.00016986,2]
[351423431,1738565450971,-500.0,0.00016986,2]
[351423432,1738565450981,-500.0,0.00016986,2]
[351423433,1738565450990,-500.0,0.00016986,2]
[351423434,1738565451003,-695.9,0.00016986,2]
[351423435,1738565451013,-711.02,0.00016986,2]
[351423436,1738565451022,-500.0,0.00016986,2]
[351423437,1738565451032,-151.0,0.00016986,2]
[351423438,1738565451041,-500.0,0.00016986,2]
[351423439,1738565451050,-500.0,0.00016986,2]
[351423440,1738565451060,-500.0,0.00016986,2]
[351423441,1738565451071,-500.0,0.00016986,2]
[351423442,1738565451082,-500.0,0.00016986,2]
[351423443,1738565451092,-500.0,0.00016986,2]
[351423444,1738565451101,-500.0,0.00016986,2]
[351423445,1738565451111,-612.10860784,0.00016986,2]
[351423446,1738565451121,-500.0,0.00016986,2]
[351423447,1738565451131,-1728.242392,0.00016986,2]
[351423448,1738565451140,-500.0,0.00016986,2]
[351423449,1738565451152,-1728.242392,0.00016986,2]
[351423450,1738565451163,-572.88064718,0.00016986,2]
[351423451,1738565451173,-500.0,0.00016986,2]
[351423452,1738565451182,-625.2,0.00016986,2]
[351423453,1738565451192,-1250.58,0.00016986,2]
[351423454,1738565451201,-500.0,0.00016986,2]
[351423455,1738565451210,-596.21,0.00016986,2]
[351423456,1738565451220,-1016.58,0.00016986,2]
[351423457,1738565451229,-570.25,0.00016986,2]
[351423458,1738565451238,-500.0,0.00016986,2]
[351423459,1738565451247,-326.63068507,0.00016986,2]
[351423460,1738565451257,-500.0,0.00016986,2]
[351423461,1738565451266,-151.0,0.00016986,2]
[351423462,1738565451275,-1883.78,0.00016986,2]
[351423463,1738565451284,-251.2066516,0.00016986,2]
[351423464,1738565451293,-500.0,0.00016986,2]
[351423465,1738565451302,-1448.78,0.00016986,2]
[351423466,1738565451311,-500.0,0.00016986,2]
[351423467,1738565451321,-668.4,0.00016986,2]
[351423468,1738565451330,-500.0,0.00016986,2]
[351423469,1738565451339,-500.0,0.00016986,2]
[351423470,1738565451348,-607.41,0.00016986,2]
[351423471,1738565451358,-1415.73,0.00016986,2]
[351423472,1738565451367,-500.0,0.00016986,2]
[351423473,1738565451377,-778.41,0.00016986,2]
[351423474,1738565451386,-500.0,0.00016986,2]
[351423475,1738565451396,-593.85,0.00016986,2]
[351423476,1738565451406,-9829.46,0.00016986,2]
[351423477,1738565451415,-2244.85,0.00016986,2]
[351423478,1738565451424,-500.0,0.00016986,2]
[351423479,1738565451434,-500.0,0.00016986,2]
[351423480,1738565451444,-500.0,0.00016986,2]
[351423481,1738565451453,-3911.54,0.00016986,2]
[351423482,1738565451463,-849.31,0.00016986,2]
[351423483,1738565451473,-881.63,0.00016986,2]
[351423484,1738565451482,-500.0,0.00016986,2]
[351423485,1738565451491,-500.0,0.00016986,2]
[351423486,1738565451501,-2454.54,0.00016986,2]
[351423487,1738565451510,-636.05,0.00016986,2]
[351423488,1738565451519,-500.0,0.00016986,2]
[351423489,1738565451529,-4059.74,0.00016986,2]
[351423490,1738565451538,-500.0,0.00016986,2]
[351423491,1738565451547,-500.0,0.00016986,2]
[351423492,1738565451556,-500.0,0.00016986,2]
[351423493,1738565451566,-246.05516958,0.00016986,2]
[351423494,1738565451575,-1042.23,0.00016986,2]
[351423495,1738565451584,-500.0,0.00016986,2]
[351423496,1738565451594,-500.0,0.00016986,2]
[351423497,1738565451604,-3424.97,0.00016986,2]
[351423498,1738565451614,-500.0,0.00016986,2]
[351423499,1738565451623,-500.0,0.00016986,2]
[351423500,1738565451633,-7985.41,0.00016986,2]
[351423501,1738565451642,-500.0,0.00016986,2]
[351423502,1738565451653,-238.80571782,0.00016986,2]
[351423503,1738565451662,-1570.01,0.00016986,2]
[351423504,1738565451672,-500.0,0.00016986,2]
[351423505,1738565451681,-500.0,0.00016986,2]
[351423506,1738565451690,-551.74,0.00016986,2]
[351423507,1738565451699,-500.0,0.00016986,2]
[351423508,1738565451709,-625.0,0.00016986,2]
[351423509,1738565451719,-1313.25,0.00016986,2]
[351423510,1738565451728,-500.0,0.00016986,2]
[351423511,1738565451737,-576.91,0.00016986,2]
[351423512,1738565451746,-500.0,0.00016986,2]
[351423513,1738565451761,-2103.510188,0.00016986,2]
[351423514,1738565451770,-214.411774,0.00016986,2]
[351423515,1738565451779,-500.0,0.00016986,2]
[351423516,1738565451789,-565.2,0.00016986,2]
[351423517,1738565451799,-463.16017989,0.00016986,2]
[351423518,1738565451808,-214.411774,0.00016986,2]
[351423519,1738565451818,-2103.510188,0.00016986,2]
[351423520,1738565451827,-500.0,0.00016986,2]
[351423521,1738565451837,-7856.26376573,0.00016986,2]
[351423522,1738565451863,-9420.0,0.00016986,2]
[351423523,1738565451954,-504.6,0.00016986,2]
[351423524,1738565451968,-37789.8756478,0.00016986,2]
[351423525,1738565451979,-427.43161552,0.00016986,2]
[351423526,1738565452056,-500.0,0.00016438,2]
[351423527,1738565452067,-9331.8796,0.00016986,2]
[351423528,1738565452083,-1011.73937095,0.00016986,2]
[351423529,1738565452092,-500.0,0.00016986,2]
[351423530,1738565452101,-546.87,0.00016986,2]
[351423531,1738565452111,-500.0,0.00016986,2]
[351423532,1738565452121,-500.0,0.00016986,2]
[351423533,1738565452131,-500.0,0.00016986,2]
[351423534,1738565452141,-1300.48,0.00016986,2]
[351423535,1738565452248,-151.814607,0.00016986,2]
[351423536,1738565452258,-500.0,0.00016986,2]
[351423537,1738565452268,-500.0,0.00016986,2]
[351423538,1738565452277,-500.0,0.00016986,2]
[351423539,1738565452287,-563.18,0.00016986,2]
[351423540,1738565452296,-500.0,0.00016986,2]
[351423541,1738565452307,-773.54,0.00016986,2]
[351423542,1738565452317,-500.0,0.00016986,2]
[351423543,1738565452326,-500.0,0.00016986,2]
[351423544,1738565452336,-1460.69,0.00016986,2]
[351423545,1738565452346,-500.0,0.00016986,2]
[351423546,1738565452355,-500.0,0.00016986,2]
[351423547,1738565452364,-781.25,0.00016986,2]
[351423548,1738565452374,-500.0,0.00016986,2]
[351423549,1738565452384,-500.0,0.00016986,2]
[351423550,1738565452394,-500.0,0.00016986,2]
[351423551,1738565452406,-830.03,0.00016986,2]
[351423552,1738565452415,-500.0,0.00016986,2]
[351423553,1738565452425,-2301.16,0.00016986,2]
[351423554,1738565452434,-500.0,0.00016986,2]
[351423555,1738565452443,-6082.07,0.00016986,2]
[351423556,1738565452453,-612.46408612,0.00016986,2]
[351423557,1738565452462,-500.0,0.00016986,2]
[351423558,1738565452472,-500.0,0.00016986,2]
[351423559,1738565452481,-1221.72,0.00016986,2]
[351423560,1738565452491,-500.0,0.00016986,2]
[351423561,1738565452500,-500.0,0.00016986,2]
[351423562,1738565452510,-361.57045499,0.00016986,2]
[351423563,1738565452522,-2768.55954501,0.00016986,2]
[351423564,1738565452532,-41.87967869,0.00016986,2]
[351423565,1738565452543,-473.74032131,0.00016986,2]
[351423566,1738565452553,-514.52766435,0.00016986,2]
[351423567,1738565452562,-1526.91359784,0.00016986,2]
[351423568,1738565493270,274.89,0.00010959,2]
[351423569,1738565498229,500.0,0.00014164,2]
[351423570,1738565503786,229.07,0.00010959,2]
[351423571,1738565524490,349.97,0.00010959,2]
[351423572,1738565534971,795.41,0.00010959,2]
[351423577,1738565708250,1000.0,0.00016,16]
[351423581,1738566061485,185.502272,0.00013699,2]
[351423582,1738566158171,30000.0,0.000164,14]
[351423583,1738566205057,10702.0,0.000164,14]
[351423606,1738566342142,-176.175433,0.00015436,2]
[351423607,1738566342162,-98.46632625,0.00016,3]
[351423619,1738566437086,-300.0,0.00015999,2]
[351423620,1738566437109,-414.84545858,0.00016,3]
[351423621,1738566488820,400.0,0.00013973,2]
[351423622,1738566510858,500.0,0.00014164,2]
[351423628,1738566545114,-153.86,0.00015405,2]
[351423629,1738566552138,-14.26484,0.00015405,2]
[351423630,1738566552160,-168.12484,0.00015414,2]
[351423631,1738566552182,-168.12484,0.00015422,2]
[351423632,1738566552203,-168.12484,0.00015431,2]
[351423633,1738566552225,-168.12484,0.00015439,2]
[351423634,1738566552248,-168.12484,0.00015448,2]
[351423635,1738566552271,-168.12484,0.00015456,2]
[351423636,1738566552301,-168.12484,0.00015465,2]
[351423637,1738566552323,-168.12484,0.00015473,2]
[351423638,1738566552345,-168.12484,0.00015482,2]
[351423639,1738566552365,-1757.83353946,0.00015839,2]
[351423640,1738566552386,-300.0,0.00015999,2]
[351423641,1738566552405,-23540.15731704,0.00016,3]
[351423642,1738566553116,-1409.4655663,0.00016,3]
[351423643,1738566557108,-19200.86705109,0.00016,3]
[351423644,1738566560186,-276.82501813,0.00016,3]
[351423647,1738566595448,91.96984238,0.00015424,2]
[351423679,1738566632558,-84.20559192,0.00015424,2]
[351423681,1738566632568,-300.0,0.00016399,2]
[351423683,1738566632578,-1925.79440808,0.000164,2]
[351423685,1738566632591,-1021.86804867,0.000164,2]
[351423687,1738566632602,-52.33754325,0.000164,2]
[351423689,1738566632613,-315.44700242,0.000164,14]
[351423695,1738566632661,-18982.55299758,0.000164,14]
[351423697,1738566632670,-21848.11084421,0.000164,14]
[351423699,1738566632680,-3000.0,0.0001641,2]
[351423701,1738566632689,-30000.0,0.0001641,14]
[351423703,1738566632699,-3000.0,0.0001642,2]
[351423705,1738566632708,-3000.0,0.0001643,2]
[351423707,1738566632717,-500.0,0.00016437,2]
[351423709,1738566632726,-500.0,0.00016438,2]
[351423711,1738566632735,-501.99614625,0.00016438,2]
[351423713,1738566632744,-500.0,0.00016438,2]
[351423715,1738566632753,-500.0,0.00016438,2]
[351423717,1738566632762,-500.0,0.00016438,2]
[351423719,1738566632771,-505.8994022,0.00016438,2]
[351423721,1738566632779,-500.0,0.00016438,2]
[351423724,1738566632790,-500.0,0.00016438,2]
[351423726,1738566632799,-500.0,0.00016438,2]
[351423727,1738566632808,-505.16514027,0.00016438,2]
[351423729,1738566632817,-500.0,0.00016438,2]
[351423731,1738566632826,-500.0,0.00016438,2]
[351423733,1738566632834,-500.0,0.00016438,2]
[351423735,1738566632843,-480.89749494,0.00016438,2]
[351423737,1738566632853,-500.0,0.00016438,2]
[351423739,1738566632863,-500.0,0.00016438,2]
[351423741,1738566632871,-500.0,0.00016438,2]
[351423743,1738566632881,-500.0,0.00016438,2]
[351423745,1738566632890,-500.0,0.00016438,2]
[351423747,1738566632899,-500.0,0.00016438,2]
[351423749,1738566632908,-501.20340938,0.00016438,2]
[351423751,1738566632917,-500.0,0.00016438,2]
[351423753,1738566632927,-500.0,0.00016438,2]
[351423755,1738566632935,-500.0,0.00016438,2]
[351423757,1738566632945,-500.0,0.00016438,2]
[351423759,1738566632954,-503.12813495,0.00016438,2]
[351423761,1738566632963,-500.0,0.00016438,2]
[351423762,1738566632973,-1005.05697971,0.00016438,2]
[351423765,1738566632983,-500.0,0.00016438,2]
[351423768,1738566632992,-500.0,0.00016438,2]
[351423770,1738566633002,-500.0,0.00016438,2]
[351423773,1738566633013,-500.0,0.00016438,2]
[351423776,1738566633023,-500.0,0.00016438,2]
[351423778,1738566633034,-507.90883325,0.00016438,2]
[351423781,1738566633044,-500.0,0.00016438,2]
[351423784,1738566633055,-500.0,0.00016438,2]
[351423786,1738566633065,-500.0,0.00016438,2]
[351423788,1738566633076,-500.0,0.00016438,2]
[351423790,1738566633086,-500.0,0.00016438,2]
[351423792,1738566633097,-500.0,0.00016438,2]
[351423793,1738566633109,-502.87017484,0.00016438,2]
[351423795,1738566633119,-500.0,0.00016438,2]
[351423797,1738566633129,-299.24131792,0.00016438,2]
[351423798,1738566633139,-500.0,0.00016438,2]
[351423800,1738566633149,-500.0,0.00016438,2]
[351423801,1738566633159,-500.0,0.00016438,2]
[351423802,1738566633170,-500.0,0.00016438,2]
[351423803,1738566633179,-196.31895254,0.00016438,2]
[351423804,1738566633190,-508.70497018,0.00016438,2]
[351423805,1738566633200,-500.0,0.00016438,2]
[351423806,1738566633209,-500.0,0.00016438,2]
[351423807,1738566633219,-500.0,0.00016438,2]
[351423808,1738566633228,-500.0,0.00016438,2]
[351423809,1738566633238,-597.26,0.00016438,2]
[351423810,1738566633248,-500.0,0.00016438,2]
[351423811,1738566633257,-500.0,0.00016438,2]
[351423812,1738566633266,-554.86,0.00016438,2]
[351423813,1738566633276,-500.0,0.00016438,2]
[351423814,1738566633286,-507.31358379,0.00016438,2]
[351423815,1738566633296,-500.0,0.00016438,2]
[351423816,1738566633305,-500.0,0.00016438,2]
[351423817,1738566633315,-500.0,0.00016438,2]
[351423818,1738566633324,-500.0,0.00016438,2]
[351423819,1738566633334,-500.0,0.00016438,2]
[351423820,1738566633343,-500.0,0.00016438,2]
[351423821,1738566633356,-347.4977541,0.00016438,2]
[351423822,1738566633366,-538.48,0.00016438,2]
[351423823,1738566633376,-500.0,0.00016438,2]
[351423824,1738566633385,-500.0,0.00016438,2]
[351423825,1738566633395,-420.63192141,0.00016438,2]
[351423826,1738566633405,-500.0,0.00016438,2]
[351423827,1738566633415,-500.0,0.00016438,2]
[351423828,1738566633424,-500.0,0.00016438,2]
[351423829,1738566633433,-889.56,0.00016438,2]
[351423830,1738566633443,-500.0,0.00016438,2]
[351423831,1738566633453,-358.56795769,0.00016438,2]
[351423832,1738566633462,-522.61697842,0.00016438,2]
[351423833,1738566633472,-500.0,0.00016438,2]
[351423834,1738566633481,-500.0,0.00016438,2]
[351423835,1738566633491,-500.0,0.00016438,2]
[351423836,1738566633503,-500.0,0.00016438,2]
[351423837,1738566633512,-378.46574439,0.00016438,2]
[351423838,1738566633522,-500.0,0.00016438,2]
[351423839,1738566633531,-513.18754979,0.00016438,2]
[351423840,1738566633542,-565.19,0.00016438,2]
[351423841,1738566633552,-500.0,0.00016438,2]
[351423842,1738566633561,-500.0,0.00016438,2]
[351423843,1738566633571,-633.53,0.00016438,2]
[351423844,1738566633581,-619.09,0.00016438,2]
[351423845,1738566633591,-500.0,0.00016438,2]
[351423846,1738566633600,-502.95130207,0.00016438,2]
[351423847,1738566633612,-500.0,0.00016438,2]
[351423848,1738566633621,-500.0,0.00016438,2]
[351423849,1738566633630,-393.62029777,0.00016438,2]
[351423850,1738566633640,-502.09250307,0.00016438,2]
[351423851,1738566633649,-500.0,0.00016438,2]
[351423852,1738566633659,-500.0,0.00016438,2]
[351423853,1738566633668,-500.0,0.00016438,2]
[351423854,1738566633678,-500.0,0.00016438,2]
[351423855,1738566633688,-514.96847443,0.00016438,2]
[351423856,1738566633697,-500.0,0.00016438,2]
[351423857,1738566633707,-500.0,0.00016438,2]
[351423858,1738566633717,-500.0,0.00016438,2]
[351423859,1738566633726,-500.0,0.00016438,2]
[351423860,1738566633736,-500.0,0.00016438,2]
[351423861,1738566633746,-500.0,0.00016438,2]
[351423862,1738566633755,-456.75396331,0.00016438,2]
[351423863,1738566633765,-628.12,0.00016438,2]
[351423864,1738566633774,-500.0,0.00016438,2]
[351423865,1738566633784,-500.0,0.00016438,2]
[351423866,1738566633794,-500.0,0.00016438,2]
[351423867,1738566633803,-500.0,0.00016438,2]
[351423868,1738566633813,-500.0,0.00016438,2]
[351423869,1738566633823,-500.0,0.00016438,2]
[351423870,1738566633832,-500.0,0.00016438,2]
[351423871,1738566633842,-500.0,0.00016438,2]
[351423872,1738566633852,-500.0,0.00016438,2]
[351423873,1738566633864,-492.45477862,0.00016438,2]
[351423874,1738566633874,-500.0,0.00016438,2]
[351423875,1738566633885,-500.0,0.00016438,2]
[351423876,1738566633895,-500.0,0.00016438,2]
[351423877,1738566633906,-500.0,0.00016438,2]
[351423878,1738566633916,-513.07,0.00016438,2]
[351423879,1738566633926,-500.0,0.00016438,2]
[351423880,1738566633936,-500.0,0.00016438,2]
[351423881,1738566633946,-500.0,0.00016438,2]
[351423882,1738566633956,-500.0,0.00016438,2]
[351423883,1738566633965,-500.0,0.00016438,2]
[351423884,1738566633975,-506.67727072,0.00016438,2]
[351423885,1738566633985,-500.0,0.00016438,2]
[351423886,1738566633994,-500.0,0.00016438,2]
[351423887,1738566634004,-569.36,0.00016438,2]
[351423888,1738566634014,-602.71,0.00016438,2]
[351423889,1738566634024,-507.90397925,0.00016438,2]
[351423890,1738566634034,-510.85046732,0.00016438,2]
[351423891,1738566634043,-513.306393,0.00016438,2]
[351423892,1738566634053,-658.74,0.00016438,2]
[351423893,1738566634063,-500.0,0.00016438,2]
[351423894,1738566634072,-500.0,0.00016438,2]
[351423895,1738566634081,-500.0,0.00016438,2]
[351423896,1738566634090,-500.0,0.00016438,2]
[351423897,1738566634098,-500.0,0.00016438,2]
[351423898,1738566634109,-500.0,0.00016438,2]
[351423899,1738566634117,-500.0,0.00016438,2]
[351423900,1738566634125,-500.0,0.00016438,2]
[351423901,1738566634133,-500.0,0.00016438,2]
[351423902,1738566634141,-500.0,0.00016438,2]
[351423903,1738566634150,-500.0,0.00016438,2]
[351423904,1738566634159,-500.0,0.00016438,2]
[351423905,1738566634169,-500.0,0.00016438,2]
[351423906,1738566634178,-500.0,0.00016438,2]
[351423907,1738566634188,-500.0,0.00016438,2]
[351423908,1738566634198,-500.0,0.00016438,2]
[351423909,1738566634207,-500.0,0.00016438,2]
[351423910,1738566634217,-500.0,0.00016438,2]
[351423911,1738566634226,-500.0,0.00016438,2]
[351423912,1738566634236,-500.0,0.00016438,2]
[351423913,1738566634245,-500.0,0.00016438,2]
[351423914,1738566634255,-500.0,0.00016438,2]
[351423915,1738566634264,-500.0,0.00016438,2]
[351423916,1738566634274,-502.45996845,0.00016438,2]
[351423917,1738566634283,-558.37,0.00016438,2]
[351423918,1738566634293,-391.87946955,0.00016438,2]
[351423919,1738566634303,-543.56,0.00016438,2]
[351423920,1738566634313,-500.0,0.00016438,2]
[351423921,1738566634323,-500.0,0.00016438,2]
[351423922,1738566634333,-500.0,0.00016438,2]
[351423923,1738566634343,-567.36,0.00016438,2]